[Event "Polish Youth Ekstraliga 2022"]
[Site "Lublin"]
[Date "2022.06.27"]
[Round "3.20"]
[White "Redzisz, Michal"]
[Black "Backiel, Hubert"]
[Result "1/2-1/2"]
[ECO "E46"]
[WhiteElo "2236"]
[BlackElo "2045"]
[Annotator "RC"]
[PlyCount "120"]
[EventDate "2022.06.24"]
[EventType "team-tourn"]
[EventCountry "POL"]
[SourceTitle "playchess.com"]
[Source "ChessBase"]
[SourceQuality "1"]
[TimeControl "40/5400+30:1800+30"]

1. d4 {[%emt 0:03:07]} Nf6 {[%emt 0:00:08]} 2. c4 {[%emt 0:00:06]} e6 {[%emt 0:00:13]} 3. Nc3 {[%emt 0:00:28]} Bb4 {[%emt 0:00:35]} 4. e3 {[%emt 0:00:22]} O-O {[%emt 0:10:06]} 5. Nge2 {[%emt 0:00:04]} Re8 {[%emt 0:05:44]} 6. a3 {[%emt 0:00:19]} Bf8 {[%emt 0:00:05]} 7. Ng3 {[%emt 0:06:14]} d5 {[%emt 0:12:04]} 8. cxd5 {[%emt 0:00:03]} exd5 {[%emt 0:00:06]} 9. Bd3 {[%emt 0:00:02]} c5 {[%emt 0:09:18]} 10. dxc5 {[%emt 0:00:02]} Bxc5 {[%emt 0:07:57]} 11. O-O {[%emt 0:00:26]} Nc6 {[%emt 0:01:08]} 12. Nce2 {[%emt 0:05:48]} Ne5 {[%emt 0:09:10]} 13. Bb5 {[%emt 0:01:34]} Bd7 {[%emt 0:00:53]} 14. Bxd7 {[%emt 0:00:56]} Qxd7 {[%emt 0:00:41]} 15. b4 {[%emt 0:00:55]} Bb6 {[%emt 0:06:47]} 16. Bb2 {[%emt 0:01:19]} Rad8 {[%emt 0:03:26]} 17. Bxe5 {[%emt 0:15:34]} Rxe5 {[%emt 0:00:17]} 18. Nd4 {[%emt 0:00:03]} Ne4 {[%emt 0:03:51]} 19. Nf3 {[%emt 0:05:25]} Re6 {[%emt 0:03:55]} 20. Nd4 {[%emt 0:21:23]} Rg6 {[%emt 0:07:24]} 21. Qd3 {[%emt 0:01:10]} Qe7 {[%emt 0:07:57]} 22. Rac1 {[%emt 0:07:13]} Qg5 {[%emt 0:03:40]} 23. Nf3 {[%emt 0:00:57]} Qf6 {[%emt 0:00:23]} 24. Nxe4 {[%emt 0:03:27]} Qxf3 {[%emt 0:00:01]} 25. Ng3 {[%emt 0:00:05]} Qg4 {[%emt 0:00:34]} 26. Rfd1 {[%emt 0:01:28]} Qh4 {[%emt 0:02:26]} 27. Nf5 {[%emt 0:04:40]} Qg5 {[%emt 0:00:02]} 28. g3 {[%emt 0:00:06]} Rf6 {[%emt 0:01:38]} 29. Ne7+ {[%emt 0:11:16]} Kf8 {[%emt 0:00:01]} 30. Nc8 {[%emt 0:00:03]} Qg4 {[%emt 0:03:18]} 31. Nxb6 {[%emt 0:01:34]} axb6 {[%emt 0:00:43]} 32. Qf1 {[%emt 0:04:00]} g6 {[%emt 0:00:44]} 33. Rd4 {[%emt 0:01:02]} Qf5 {[%emt 0:01:04]} 34. Rcd1 {[%emt 0:00:19]} Re6 {[%emt 0:00:20]} 35. Qg2 {[%emt 0:00:13]} Rc6 {[%emt 0:00:40]} 36. e4 {[%emt 0:00:24]} Qf6 {[%emt 0:00:32]} 37. h4 {[%emt 0:02:39]} Rc1 {[%emt 0:00:25]} 38. Qf1 {[%emt 0:02:26]} Qxd4 {[%emt 0:00:41]} 39. Rxd4 {[%emt 0:00:01]} Rxf1+ {[%emt 0:00:02]} 40. Kxf1 {[%emt 0:00:00]} Ke7 {[%emt 0:00:00]} 41. exd5 {[%emt 0:01:06]} Kd6 {[%emt 0:00:30]} 42. Ke2 {[%emt 0:12:49]} Ke5 {[%emt 0:03:27]} 43. Ke3 {[%emt 0:00:17]} Rxd5 {[%emt 0:06:02]} 44. Rc4 {[%emt 0:00:01]} Rd7 {[%emt 0:00:50]} 45. a4 {[%emt 0:05:36]} f5 {[%emt 0:04:24]} 46. a5 {[%emt 0:02:46]} bxa5 {[%emt 0:01:21]} 47. bxa5 {[%emt 0:00:02]} Re7 {[%emt 0:02:09]} 48. Rb4 {[%emt 0:03:20]} Kd5+ {[%emt 0:08:40]} 49. Kf3 {[%emt 0:00:22]} Kc6 {[%emt 0:00:27]} 50. Rb6+ {[%emt 0:04:25]} Kc7 {[%emt 0:00:09]} 51. Rf6 {[%emt 0:00:02]} Re5 {[%emt 0:02:16]} 52. Rf7+ {[%emt 0:02:31]} Kc8 {[%emt 0:00:12]} 53. Rxh7 {[%emt 0:01:10]} Rxa5 {[%emt 0:00:04]} 54. Rh6 {[%emt 0:00:36]} Ra6 {[%emt 0:02:39]} 55. h5 {[%emt 0:00:04]} gxh5 {[%emt 0:00:13]} 56. Rxh5 {[%emt 0:00:02]} Ra3+ {[%emt 0:02:43]} 57. Kf4 {[%emt 0:03:25]} Ra4+ {[%emt 0:00:05]} 58. Kf3 {[%emt 0:00:03]} Ra3+ {[%emt 0:01:03]} 59. Kf4 {[%emt 0:01:16]} Ra4+ {[%emt 0:00:20]} 60. Kf3 {[%emt 0:00:47]} Ra5 {[%emt 0:00:10]} 1/2-1/2

[Event "Polish Youth Ekstraliga 2022"]
[Site "Lublin"]
[Date "2022.06.27"]
[Round "3.21"]
[White "Ptaszynski, Szymon"]
[Black "Warchol, Kamil"]
[Result "0-1"]
[ECO "A45"]
[WhiteElo "1781"]
[BlackElo "2079"]
[Annotator "RC"]
[PlyCount "90"]
[EventDate "2022.06.24"]
[EventType "team-tourn"]
[EventCountry "POL"]
[SourceTitle "playchess.com"]
[Source "ChessBase"]
[SourceQuality "1"]
[TimeControl "40/5400+30:1800+30"]

1. d4 {[%emt 0:00:01]} Nf6 {[%emt 0:00:05]} 2. Bf4 {[%emt 0:00:18]} d5 {[%emt 0:02:04]} 3. e3 {[%emt 0:00:11]} c5 {[%emt 0:01:29]} 4. Nf3 {[%emt 0:01:17]} Nc6 {[%emt 0:03:51]} 5. h3 {[%emt 0:07:11]} Bf5 {[%emt 0:08:52]} 6. Bd3 {[%emt 0:20:30]} Bg6 {[%emt 0:09:04]} 7. Bxg6 {[%emt 0:01:30]} hxg6 {[%emt 0:00:15]} 8. c3 {[%emt 0:00:11]} Qb6 {[%emt 0:05:28]} 9. Qb3 {[%emt 0:07:32]} e6 {[%emt 0:21:58]} 10. Nbd2 {[%emt 0:11:24]} Be7 {[%emt 0:03:40]} 11. O-O {[%emt 0:02:41]} O-O {[%emt 0:00:57]} 12. Rfe1 {[%emt 0:01:30]} Rac8 {[%emt 0:06:48]} 13. Rac1 {[%emt 0:05:16]} Rfd8 {[%emt 0:01:31]} 14. Qc2 {[%emt 0:15:21]} a6 {[%emt 0:07:34]} 15. b3 {[%emt 0:02:11]} cxd4 {[%emt 0:04:14]} 16. exd4 {[%emt 0:00:08]} Ba3 {[%emt 0:00:09]} 17. Qd3 {[%emt 0:06:33]} Bxc1 {[%emt 0:01:09]} 18. Rxc1 {[%emt 0:00:01]} Qa5 {[%emt 0:06:57]} 19. Qb1 {[%emt 0:02:04]} Qa3 {[%emt 0:01:50]} 20. Rc2 {[%emt 0:01:28]} Qe7 {[%emt 0:00:29]} 21. Rc1 {[%emt 0:01:21]} a5 {[%emt 0:02:42]} 22. Bg5 {[%emt 0:01:44]} b5 {[%emt 0:01:13]} 23. Qb2 {[%emt 0:04:29]} Qa7 {[%emt 0:01:21]} 24. Ne5 {[%emt 0:03:07]} Re8 {[%emt 0:01:12]} 25. Be3 {[%emt 0:00:30]} Qe7 {[%emt 0:01:26]} 26. Bg5 {[%emt 0:00:56]} Qb7 {[%emt 0:00:43]} 27. Bf4 {[%emt 0:01:13]} Nxe5 {[%emt 0:01:38]} 28. Bxe5 {[%emt 0:00:41]} Nd7 {[%emt 0:00:30]} 29. Nf3 {[%emt 0:00:01]} Rc6 {[%emt 0:01:24]} 30. h4 {[%emt 0:01:16]} Rec8 {[%emt 0:01:23]} 31. Qc2 {[%emt 0:01:54]} b4 {[%emt 0:01:11]} 32. c4 {[%emt 0:00:15]} dxc4 {[%emt 0:00:57]} 33. bxc4 {[%emt 0:00:04]} Rxc4 {[%emt 0:00:07]} 34. Qxc4 {[%emt 0:00:15]} Rxc4 {[%emt 0:00:04]} 35. Rxc4 {[%emt 0:00:02]} Nxe5 {[%emt 0:00:08]} 36. Nxe5 {[%emt 0:00:26]} Kh7 {[%emt 0:01:02]} 37. Nc6 {[%emt 0:02:22]} Qb5 {[%emt 0:01:14]} 38. Rc5 {[%emt 0:00:15]} Qa4 {[%emt 0:00:04]} 39. Nxa5 {[%emt 0:00:40]} Qxa2 {[%emt 0:00:15]} 40. Nc4 {[%emt 0:00:00]} Qa1+ {[%emt 0:00:00]} 41. Kh2 {[%emt 0:00:52]} Qxd4 {[%emt 0:00:21]} 42. Rc8 {[%emt 0:00:15]} Qxh4+ {[%emt 0:00:26]} 43. Kg1 {[%emt 0:00:01]} Qd4 {[%emt 0:00:13]} 44. Na5 {[%emt 0:00:12]} Qa1+ {[%emt 0:00:12]} 45. Kh2 {[%emt 0:00:03]} Qxa5 {[%emt 0:00:04]} 0-1

[Event "Polish Youth Ekstraliga 2022"]
[Site "Lublin"]
[Date "2022.06.27"]
[Round "3.22"]
[White "Krol, Jan"]
[Black "Rekuc, Patryk"]
[Result "1-0"]
[ECO "B54"]
[WhiteElo "1668"]
[BlackElo "1842"]
[Annotator "NA RC"]
[PlyCount "67"]
[EventDate "2022.06.24"]
[EventType "team-tourn"]
[EventCountry "POL"]
[SourceTitle "playchess.com"]
[Source "ChessBase"]
[SourceQuality "1"]
[TimeControl "40/5400+30:1800+30"]

1. e4 {[%emt 0:00:14]} c5 {[%emt 0:00:03]} 2. Nf3 {[%emt 0:00:05]} d6 {[%emt 0:00:04]} 3. d4 {[%emt 0:00:04]} cxd4 {[%emt 0:00:03]} 4. Nxd4 {[%emt 0:00:04]} Nf6 {[%emt 0:00:04]} 5. Bd3 {[%emt 0:01:01]} Nc6 {[%emt 0:00:04]} 6. Ne2 {[%emt 0:02:30]} g6 {[%emt 0:03:16]} 7. Nbc3 {[%emt 0:00:35]} Bg7 {[%emt 0:00:12]} 8. h3 {[%emt 0:00:26]} a6 {[%emt 0:03:11]} 9. Be3 {[%emt 0:04:07]} b5 {[%emt 0:04:30]} 10. a3 {[%emt 0:00:09]} Bb7 {[%emt 0:00:19]} 11. Qd2 {[%emt 0:18:09]} h5 {[%emt 0:05:07]} (11... O-O $15 {might be stronger.}) 12. f4 {[%emt 0:00:24]} Rc8 {[%emt 0:00:40]} 13. O-O {[%emt 0:04:46]} Na5 {[%emt 0:07:48]} 14. e5 {[%emt 0:15:49]} dxe5 {[%emt 0:27:52]} 15. fxe5 {[%emt 0:00:28]} Nd5 {[%emt 0:03:30]} (15... Nh7 $1 $14) 16. e6 {[%emt 0:01:20]} f5 {[%emt 0:08:16] [#]} 17. Nxd5 $1 {[%emt 0:02:29]} Bxd5 {[%emt 0:00:07]} 18. Nf4 {[%emt 0:04:50]} Nc4 {[%emt 0:03:15]} 19. Bxc4 {[%emt 0:02:31]} Bxc4 20. Qf2 {[%emt 0:00:10]} Bxf1 $16 {[%emt 0:02:21]} (20... Bxb2 $2 21. Rad1 Qa5 22. Nxg6 Bxe6 23. Nxh8 Bxh8 24. Qe2 $18) 21. Qg3 $2 {[%emt 0:00:28]} (21. Nxg6 $16 {stays on course.} Qd5 22. Rxf1) 21... Qd6 {[%emt 0:03:58]} 22. Qxg6+ {[%emt 0:00:52]} Kd8 {[%emt 0:00:06]} 23. Qxg7 {[%emt 0:02:22]} Kc7 {[%emt 0:00:05]} 24. Rxf1 {[%emt 0:00:18]} Rhg8 {[%emt 0:00:42]} 25. Qd4 {[%emt 0:01:08]} Qxd4 {[%emt 0:00:21]} 26. Bxd4 {[%emt 0:00:01]} Kd6 {[%emt 0:00:09]} 27. c3 {[%emt 0:00:08]} h4 {[%emt 0:00:20]} 28. b4 {[%emt 0:02:05]} Rg3 {[%emt 0:00:33]} 29. Bc5+ {[%emt 0:05:47]} Ke5 {[%emt 0:01:17]} 30. Bxe7 {[%emt 0:00:16]} Rc4 {[%emt 0:00:09]} 31. Bxh4 {[%emt 0:00:35]} Rg8 {[%emt 0:00:06]} 32. g3 {[%emt 0:00:34]} Rxc3 {[%emt 0:00:43]} 33. Re1+ {[%emt 0:00:21]} Kd6 {[%emt 0:00:05]} 34. e7 {[%emt 0:00:08]} 1-0

[Event "Polish Youth Ekstraliga 2022"]
[Site "Lublin"]
[Date "2022.06.27"]
[Round "3.23"]
[White "Marcinczyk, Monika"]
[Black "Adamczyk, Zuzanna"]
[Result "1-0"]
[ECO "B06"]
[WhiteElo "1991"]
[BlackElo "1909"]
[Annotator "NA RC"]
[PlyCount "133"]
[EventDate "2022.06.24"]
[EventType "team-tourn"]
[EventCountry "POL"]
[SourceTitle "playchess.com"]
[Source "ChessBase"]
[SourceQuality "1"]
[TimeControl "40/5400+30:1800+30"]

1. e4 {[%emt 0:00:03]} g6 {[%emt 0:00:38]} 2. d4 {[%emt 0:00:07]} Bg7 {[%emt 0:00:20]} 3. Nc3 {[%emt 0:00:51]} d6 {[%emt 0:00:24]} 4. Be3 {[%emt 0:00:20]} a6 {[%emt 0:00:20]} 5. a4 {[%emt 0:01:58]} b6 {[%emt 0:00:47]} 6. Bc4 {[%emt 0:01:52]} e6 {[%emt 0:05:07] 6...Bb7 is vanishing.} 7. Nge2 {[%emt 0:03:05]} Bb7 {[%emt 0:07:05]} 8. Bb3 {[%emt 0:09:35]} Nd7 {[%emt 0:08:51]} 9. O-O {[%emt 0:07:12]} Ne7 {[%emt 0:07:16] [#]} 10. Nf4 $146 {[%emt 0:13:23]} ({Predecessor:} 10. f4 d5 11. e5 Nf5 12. Bf2 h5 13. Ng3 Nh6 14. Qd2 c5 15. Nd1 cxd4 16. Bxd4 {1-0 (47) Amberger,D (2058)-Koller,H (2168) Austria 2019}) 10... e5 {[%emt 0:10:05]} 11. dxe5 {[%emt 0:10:46]} dxe5 {[%emt 0:08:34]} 12. Nfd5 {[%emt 0:01:11]} Nxd5 {[%emt 0:04:12]} 13. exd5 {[%emt 0:04:33]} O-O {[%emt 0:09:26]} 14. Ne4 {[%emt 0:03:18]} h6 {[%emt 0:13:18]} 15. f3 {[%emt 0:05:47]} Nf6 {[%emt 0:03:09]} 16. c4 {[%emt 0:01:43]} Kh7 {[%emt 0:04:05]} 17. Qc2 {[%emt 0:09:35]} Ne8 {[%emt 0:07:32]} 18. a5 {[%emt 0:04:09]} f5 {[%emt 0:01:36]} 19. Nc3 {[%emt 0:00:37]} Nd6 {[%emt 0:05:23]} 20. axb6 {[%emt 0:02:26]} cxb6 {[%emt 0:00:07]} 21. Ba2 {[%emt 0:02:20]} Rb8 {[%emt 0:01:25]} 22. Rac1 {[%emt 0:03:08]} Qc7 {[%emt 0:00:33]} 23. Na4 {[%emt 0:02:07]} b5 {[%emt 0:00:22]} 24. Nc5 {[%emt 0:01:19]} Qa5 {[%emt 0:00:49]} 25. b3 {[%emt 0:03:05]} Rfc8 {[%emt 0:00:35]} 26. Nxb7 {[%emt 0:03:19]} Nxb7 {[%emt 0:00:08]} 27. Qf2 $2 {[%emt 0:02:05]} ({White should try} 27. c5 $18) 27... bxc4 {[%emt 0:00:24]} 28. bxc4 {[%emt 0:01:02]} Nc5 {[%emt 0:00:28]} 29. Bb1 {[%emt 0:00:37]} Nb3 {[%emt 0:00:59]} 30. Rc2 {[%emt 0:01:07]} Nd4 {[%emt 0:00:14]} 31. Rcc1 {[%emt 0:00:51]} Nb3 {[%emt 0:00:20]} 32. Rc2 {[%emt 0:02:02]} Nd4 {[%emt 0:00:04]} 33. Ra2 {[%emt 0:00:20]} Qb6 {[%emt 0:00:42]} 34. Bd3 {[%emt 0:00:14]} Qb3 {[%emt 0:00:18]} 35. Qd2 {[%emt 0:00:42]} Qb6 {[%emt 0:00:51]} 36. Rb1 {[%emt 0:00:29]} Qd6 {[%emt 0:00:44]} 37. Rxb8 {[%emt 0:00:36]} Rxb8 {[%emt 0:00:07]} 38. f4 {[%emt 0:00:45]} e4 {[%emt 0:00:44]} 39. Bf1 {[%emt 0:00:36]} Nb3 {[%emt 0:00:26]} 40. Qf2 {[%emt 0:00:00]} Rc8 {[%emt 0:00:00]} 41. Qc2 {[%emt 0:03:27]} Nc5 {[%emt 0:06:13]} (41... Rb8 $11 {feels stronger.}) 42. Ra5 {[%emt 0:01:07]} Nb7 {[%emt 0:03:39]} 43. Ra2 {[%emt 0:02:57]} Nc5 {[%emt 0:00:27]} 44. Qd2 {[%emt 0:07:55]} Nb3 {[%emt 0:04:43]} 45. Qd1 {[%emt 0:01:19]} Rb8 {[%emt 0:01:01]} 46. g4 {[%emt 0:08:38]} g5 $2 {[%emt 0:10:20]} (46... fxg4 $1 $11 47. Kh1 (47. Qxg4 Nd4 $15) 47... a5) 47. Rf2 {[%emt 0:01:10]} fxg4 {[%emt 0:04:28]} 48. Bg2 {[%emt 0:02:47]} Nc5 {[%emt 0:01:03]} 49. fxg5 {[%emt 0:01:24]} hxg5 {[%emt 0:00:54]} 50. Bxc5 {[%emt 0:00:42]} Qxc5 {[%emt 0:00:15]} 51. Bxe4+ {[%emt 0:00:05]} Kg8 {[%emt 0:01:38]} 52. Qxg4 {[%emt 0:00:49]} Re8 {[%emt 0:02:21]} 53. Kg2 {[%emt 0:01:36]} Qd4 {[%emt 0:00:33]} 54. Bh7+ {[%emt 0:01:49]} Kh8 {[%emt 0:00:53]} 55. Qh5 $18 {[%emt 0:00:37]} Qh4 {[%emt 0:00:21]} 56. Qxe8+ {[%emt 0:00:11]} Kxh7 {[%emt 0:00:05]} 57. Qe2 {[%emt 0:00:28]} g4 {[%emt 0:00:50]} 58. Qd3+ {[%emt 0:00:25]} Kh8 {[%emt 0:00:27]} 59. Re2 {[%emt 0:00:34]} Qh5 {[%emt 0:00:38]} 60. Qe3 {[%emt 0:01:27]} Qf5 {[%emt 0:00:35]} 61. Qe8+ {[%emt 0:00:17]} Kh7 {[%emt 0:00:31]} 62. Qe4 {[%emt 0:00:10]} Kg6 {[%emt 0:00:10]} 63. d6 {[%emt 0:00:14]} Bf6 {[%emt 0:00:43]} 64. d7 {[%emt 0:00:10]} a5 {[%emt 0:00:33]} 65. Qxf5+ {[%emt 0:00:16]} Kxf5 {[%emt 0:00:05]} 66. Re8 {[%emt 0:00:08]} a4 {[%emt 0:00:21]} 67. d8=Q {[%emt 0:00:08]} 1-0

[Event "Polish Youth Ekstraliga 2022"]
[Site "Lublin"]
[Date "2022.06.27"]
[Round "3.24"]
[White "Gaszka, Zuzanna"]
[Black "Szczotka, Klara"]
[Result "0-1"]
[ECO "B17"]
[WhiteElo "1621"]
[BlackElo "1863"]
[Annotator "NA RC"]
[PlyCount "94"]
[EventDate "2022.06.24"]
[EventType "team-tourn"]
[EventCountry "POL"]
[SourceTitle "playchess.com"]
[Source "ChessBase"]
[SourceQuality "1"]
[TimeControl "40/5400+30:1800+30"]

1. e4 c6 2. d4 d5 3. Nc3 dxe4 4. Nxe4 Nd7 5. Ng5 Ngf6 6. Bd3 e6 7. N1f3 Be7 8. Qe2 h6 9. Ne4 Nxe4 10. Qxe4 Nf6 11. Qe2 (11. Qh4 $16) 11... Qc7 12. Bd2 b6 13. Ne5 Bb7 14. f4 Rd8 15. c3 c5 16. Bb5+ Kf8 17. Be3 Nd5 18. Bd2 ({Wrong is} 18. Qh5 $2 g6 19. Qf3 Nxe3 20. Qxe3 Bxg2 $19) 18... Bh4+ 19. Kf1 (19. g3 $15 Bf6 20. O-O) 19... h5 20. dxc5 bxc5 21. Bd3 {[#]} Bf6 (21... Rh6 $142 $1 22. g3 Bf6) 22. Re1 h4 23. h3 (23. Rg1 $142) 23... Ne7 24. c4 Bxe5 25. fxe5 Qd7 26. Ba5 Qxd3 27. Bxd8 Qxd8 28. Rd1 Qc7 29. Kf2 Nf5 30. Rhe1 g6 31. Qd2 Rh5 32. Qd8+ Qxd8 33. Rxd8+ Ke7 34. Rb8 Bc6 35. Rc8 Nd4 36. Rc7+ Kf8 37. b4 Rf5+ 38. Kg1 Rg5 39. b5 Bxg2 40. Kf2 Bxh3 41. Rh1 Rg2+ 42. Ke1 Nf3+ 43. Kd1 Bg4 44. Kc1 h3 45. Rxa7 $19 Nxe5 46. b6 Nd3+ 47. Kb1 Rb2+ 0-1

[Event "Polish Youth Ekstraliga 2022"]
[Site "Lublin"]
[Date "2022.06.27"]
[Round "3.25"]
[White "Czernek, Tymon"]
[Black "Ciborowski, Konrad Jr"]
[Result "1-0"]
[ECO "B90"]
[WhiteElo "2199"]
[BlackElo "1927"]
[Annotator "RC"]
[PlyCount "123"]
[EventDate "2022.06.24"]
[EventType "team-tourn"]
[EventCountry "POL"]
[SourceTitle "playchess.com"]
[Source "ChessBase"]
[SourceQuality "1"]
[TimeControl "40/5400+30:1800+30"]

1. e4 {[%emt 0:00:13]} c5 {[%emt 0:00:03]} 2. Nf3 {[%emt 0:00:11]} d6 {[%emt 0:00:05]} 3. d4 {[%emt 0:00:05]} cxd4 {[%emt 0:00:05]} 4. Nxd4 {[%emt 0:00:04]} Nf6 {[%emt 0:00:05]} 5. Nc3 {[%emt 0:00:04]} a6 {[%emt 0:00:02]} 6. Bc4 {[%emt 0:00:15]} e6 {[%emt 0:00:05]} 7. O-O {[%emt 0:00:07]} b5 {[%emt 0:00:01]} 8. Bb3 {[%emt 0:00:07]} Be7 {[%emt 0:00:05]} 9. Qf3 {[%emt 0:09:01]} Qb6 {[%emt 0:00:07]} 10. Be3 {[%emt 0:02:55]} Qb7 {[%emt 0:00:11]} 11. Qg3 {[%emt 0:02:02]} b4 {[%emt 0:00:09]} 12. Na4 {[%emt 0:10:10]} Nbd7 {[%emt 0:00:08]} 13. f3 {[%emt 0:04:56]} O-O {[%emt 0:00:17]} 14. Rad1 {[%emt 0:03:46]} Ne5 {[%emt 0:00:27]} 15. Nb6 {[%emt 0:09:20]} Rb8 {[%emt 0:00:09]} 16. Nxc8 {[%emt 0:00:09]} Qxc8 {[%emt 0:00:04]} 17. Rfe1 {[%emt 0:01:48]} a5 {[%emt 0:05:12]} 18. a4 {[%emt 0:06:50]} bxa3 {[%emt 0:01:25]} 19. bxa3 {[%emt 0:00:05]} Nc4 {[%emt 0:03:10]} 20. Bc1 {[%emt 0:00:53]} Qc5 {[%emt 0:10:45]} 21. a4 {[%emt 0:03:24]} Rfc8 {[%emt 0:09:26]} 22. Qf2 {[%emt 0:03:53]} Bf8 {[%emt 0:06:40]} 23. h3 {[%emt 0:06:38]} h6 {[%emt 0:01:03]} 24. g4 {[%emt 0:08:24]} e5 {[%emt 0:11:51]} 25. Nf5 {[%emt 0:01:43]} d5 {[%emt 0:00:05]} 26. exd5 {[%emt 0:02:21]} Nxd5 {[%emt 0:00:05]} 27. Qxc5 {[%emt 0:04:37]} Bxc5+ {[%emt 0:00:07]} 28. Kf1 {[%emt 0:00:21]} Ndb6 {[%emt 0:00:53]} 29. Re4 {[%emt 0:00:54]} Bf8 {[%emt 0:00:59]} 30. Ke2 {[%emt 0:00:43]} Rc5 {[%emt 0:14:31]} 31. g5 {[%emt 0:01:24]} hxg5 {[%emt 0:07:06]} 32. Bxg5 {[%emt 0:00:33]} g6 {[%emt 0:02:54]} 33. Ne3 {[%emt 0:08:43]} Rbc8 {[%emt 0:05:42]} 34. Bf6 {[%emt 0:02:38]} Bg7 {[%emt 0:04:21]} 35. Rd8+ {[%emt 0:00:41]} Rxd8 {[%emt 0:00:54]} 36. Bxd8 {[%emt 0:00:01]} Rc8 {[%emt 0:00:55]} 37. Nxc4 {[%emt 0:00:03]} Nxc4 {[%emt 0:00:46]} 38. Rxc4 {[%emt 0:00:01]} Rxd8 {[%emt 0:00:06]} 39. Rc7 {[%emt 0:00:04]} Kh7 {[%emt 0:11:12]} 40. Bxf7 {[%emt 0:00:00]} Bf8 {[%emt 0:00:00]} 41. c3 {[%emt 0:03:34]} Kg7 {[%emt 0:04:32]} 42. Ra7 {[%emt 0:01:50]} Kf6 {[%emt 0:00:03]} 43. Bc4 {[%emt 0:00:57]} Bh6 {[%emt 0:00:19]} 44. Bd3 {[%emt 0:01:06]} Bf4 {[%emt 0:01:20]} 45. Ra6+ {[%emt 0:01:04]} Kf7 {[%emt 0:00:04]} 46. Bxg6+ {[%emt 0:00:34]} Ke7 {[%emt 0:00:03]} 47. Bd3 {[%emt 0:00:52]} Rb8 {[%emt 0:00:02]} 48. Be4 {[%emt 0:01:14]} Rd8 {[%emt 0:01:22]} 49. Rxa5 {[%emt 0:03:18]} Rd2+ {[%emt 0:00:05]} 50. Ke1 {[%emt 0:00:04]} Rh2 {[%emt 0:00:18]} 51. Ra7+ {[%emt 0:00:14]} Kd6 {[%emt 0:04:04]} 52. Ra6+ {[%emt 0:00:07]} Ke7 {[%emt 0:00:04]} 53. Rc6 {[%emt 0:02:12]} Rxh3 {[%emt 0:00:40]} 54. Ke2 {[%emt 0:00:14]} Rh2+ {[%emt 0:01:05]} 55. Kd3 {[%emt 0:00:10]} Ra2 {[%emt 0:00:03]} 56. Ra6 {[%emt 0:00:16]} Kd7 {[%emt 0:03:36]} 57. c4 {[%emt 0:06:03]} Ra3+ {[%emt 0:00:17]} 58. Kc2 {[%emt 0:00:03]} Be3 {[%emt 0:04:23]} 59. Kb2 {[%emt 0:00:06]} Bc5 {[%emt 0:00:02]} 60. Ra5 {[%emt 0:00:15]} Bf8 {[%emt 0:01:26]} 61. Ra7+ {[%emt 0:00:53]} Ke6 {[%emt 0:00:30]} 62. Bd5+ 1-0

[Event "Polish Youth Ekstraliga 2022"]
[Site "Lublin"]
[Date "2022.06.27"]
[Round "3.26"]
[White "Wydmanski, Szymon"]
[Black "Chyzy, Jakub"]
[Result "0-1"]
[ECO "A05"]
[WhiteElo "1815"]
[BlackElo "2191"]
[Annotator "RC"]
[PlyCount "102"]
[EventDate "2022.06.24"]
[EventType "team-tourn"]
[EventCountry "POL"]
[SourceTitle "playchess.com"]
[Source "ChessBase"]
[SourceQuality "1"]
[TimeControl "40/5400+30:1800+30"]

1. Nf3 {[%emt 0:00:03]} Nf6 {[%emt 0:03:52]} 2. e3 {[%emt 0:00:10]} d5 {[%emt 0:01:35]} 3. b3 {[%emt 0:01:26]} g6 {[%emt 0:04:11]} 4. Bb2 {[%emt 0:00:54]} Bg7 {[%emt 0:00:05]} 5. c4 {[%emt 0:01:20]} c6 {[%emt 0:01:22]} 6. Be2 {[%emt 0:01:18]} O-O {[%emt 0:00:13]} 7. O-O {[%emt 0:00:07]} b6 {[%emt 0:16:37]} 8. d4 {[%emt 0:03:07]} Ne4 {[%emt 0:03:59]} 9. Nbd2 {[%emt 0:10:11]} Bb7 {[%emt 0:05:12]} 10. Qc2 {[%emt 0:12:43]} Nxd2 {[%emt 0:01:06]} 11. Qxd2 {[%emt 0:02:18]} Nd7 {[%emt 0:01:06]} 12. Rac1 {[%emt 0:10:38]} Nf6 {[%emt 0:10:34]} 13. cxd5 {[%emt 0:03:45]} cxd5 {[%emt 0:07:08]} 14. Ne5 {[%emt 0:00:42]} Ne4 {[%emt 0:00:14]} 15. Qb4 {[%emt 0:00:46]} a5 {[%emt 0:14:05]} 16. Qa4 {[%emt 0:01:41]} Nd6 {[%emt 0:01:12]} 17. Qd7 {[%emt 0:07:09]} Bxe5 {[%emt 0:02:46]} 18. Qxd8 {[%emt 0:00:08]} Bxh2+ {[%emt 0:00:04]} 19. Kxh2 {[%emt 0:00:05]} Rfxd8 {[%emt 0:00:36]} 20. Rc7 {[%emt 0:00:20]} Kf8 {[%emt 0:15:36]} 21. Ba3 {[%emt 0:04:01]} Ba6 {[%emt 0:00:42]} 22. Bxa6 {[%emt 0:00:26]} Rxa6 {[%emt 0:00:02]} 23. Rfc1 {[%emt 0:01:27]} a4 {[%emt 0:06:00]} 24. Bxd6 {[%emt 0:17:14]} Rxd6 {[%emt 0:00:07]} 25. Rb7 {[%emt 0:00:12]} axb3 {[%emt 0:00:35]} 26. axb3 {[%emt 0:00:10]} Ra2 {[%emt 0:01:38]} 27. Rcc7 {[%emt 0:08:40]} Rf6 {[%emt 0:02:20]} 28. Rxe7 {[%emt 0:00:57]} Rfxf2 {[%emt 0:00:01]} 29. Kh3 {[%emt 0:00:19]} Rab2 {[%emt 0:00:31]} 30. Red7 {[%emt 0:06:07]} Rxb3 {[%emt 0:00:09]} 31. Rxd5 {[%emt 0:00:09]} Rxe3+ {[%emt 0:00:05]} 32. Kh2 {[%emt 0:01:26]} Ree2 {[%emt 0:00:31]} 33. Rg5 {[%emt 0:00:35]} Rd2 {[%emt 0:01:02]} 34. Kg1 {[%emt 0:02:55]} Rf4 {[%emt 0:00:50]} 35. Rxb6 {[%emt 0:02:21]} Rd1+ {[%emt 0:00:35]} 36. Kh2 {[%emt 0:00:10]} Rh4+ {[%emt 0:00:07]} 37. Kg3 {[%emt 0:00:08]} Rhxd4 {[%emt 0:00:05]} 38. Rb7 {[%emt 0:00:49]} Rd5 {[%emt 0:00:21]} 39. Rxd5 {[%emt 0:00:45]} Rxd5 {[%emt 0:00:02]} 40. Kf3 {[%emt 0:00:00]} h5 {[%emt 0:00:00]} 41. Ra7 {[%emt 0:00:55]} Kg7 {[%emt 0:00:36]} 42. Rb7 {[%emt 0:00:34]} g5 {[%emt 0:00:25]} 43. Ra7 {[%emt 0:00:45]} Kg6 {[%emt 0:00:12]} 44. Ra6+ {[%emt 0:00:19]} Kf5 {[%emt 0:00:46]} 45. Rh6 {[%emt 0:01:22]} g4+ {[%emt 0:00:22]} 46. Kg3 {[%emt 0:00:14]} Kg5 {[%emt 0:00:13]} 47. Rh8 {[%emt 0:00:11]} h4+ {[%emt 0:00:06]} 48. Kh2 {[%emt 0:00:20]} Rd1 {[%emt 0:00:29]} 49. Rg8+ {[%emt 0:01:04]} Kf4 {[%emt 0:00:11]} 50. g3+ {[%emt 0:00:09]} hxg3+ {[%emt 0:00:04]} 51. Kg2 {[%emt 0:00:02]} Rd2+ {[%emt 0:00:07]} 0-1